[Event "16th HSG Open-A 2022"]
[Site "Hilversum"]
[Date "2022.06.18"]
[Round "3.1"]
[White "De Groote, Ewoud"]
[Black "Beerdsen, Thomas"]
[Result "0-1"]
[ECO "E10"]
[WhiteElo "2230"]
[BlackElo "2497"]
[Annotator "TA"]
[PlyCount "80"]
[EventDate "2022.06.17"]
[EventCountry "NED"]
[SourceTitle "playchess.com"]
[Source "ChessBase"]
[SourceQuality "1"]
[TimeControl "6600+10"]

{[%evp 13,80,18,22,0,0,20,78,77,74,77,87,32,19,24,11,-20,-24,-40,-31,-31,-14,-36,-22,-47,-34,-40,-52,-39,-56,-55,30,-111,-48,-72,-2,-210,0,18,54,42,45,53,72,0,0,0,15,16,50,16,77,0,0,0,9,0,49,40,47,0,0,0,0,0,0,-8,-8,-203,-141]} 1. d4 {[%emt 0:00:08]} Nf6 {[%emt 0:00:09]} 2. c4 {[%emt 0:00:07]} e6 {[%emt 0:00:06]} 3. Nf3 {[%emt 0:00:03]} c5 {[%emt 0:00:08]} 4. d5 {[%emt 0:00:59]} b5 {[%emt 0:00:13]} 5. dxe6 {[%emt 0:01:38]} fxe6 {[%emt 0:00:07]} 6. cxb5 {[%emt 0:00:41]} d5 {[%emt 0:00:13]} 7. e3 {[%emt 0:04:13]} Bd6 {[%emt 0:00:38]} 8. Nbd2 {[%emt 0:01:54] 8.Be2 is setting a new trend. E10: Blumenfeld Gambit.} Bb7 {[%emt 0:01:59]} 9. b3 {[%emt 0:01:16]} Nbd7 {[%emt 0:01:00]} (9... O-O $11) 10. Bb2 $16 {[%emt 0:05:40] White is better.} O-O {[%emt 0:00:21]} 11. Be2 {[%emt 0:06:06] has lost popularity (11.Bd3).} e5 {[%emt 0:00:27] [#]} 12. Nc4 $1 {[%emt 0:21:40]} Bc7 $14 {[%emt 0:00:21]} 13. Ncxe5 {[%emt 0:08:28] next Nc6 is good for White.} Nxe5 {[%emt 0:00:20]} 14. Nxe5 {[%emt 0:05:52]} Ba5+ {[%emt 0:00:08]} 15. Kf1 {[%emt 0:00:49]} Ne4 {[%emt 0:00:07] Hoping for ...Qh4.} 16. Nf3 {[%emt 0:04:50] Inhibits Qh4.} Qe7 {[%emt 0:07:51][%cal Od5d4] [#]} 17. Qd3 $146 {[%emt 0:09:51] Against d4} ({Predecessor:} 17. Qc2 Rf7 18. Rc1 Raf8 19. Be5 Nd2+ 20. Nxd2 Rxf2+ 21. Ke1 Qxe5 22. Qxc5 Rxg2 23. Kd1 {0-1 (32) Karp,E (1713)-Korba,N (2136) Indianapolis 2016}) 17... d4 {[%emt 0:02:26]} 18. exd4 {[%emt 0:07:30] [#]} Rxf3 $1 {[%emt 0:01:30]} 19. Bxf3 {[%emt 0:09:09]} Nd2+ {[%emt 0:00:09]} 20. Kg1 {[%emt 0:00:28]} Bxf3 {[%emt 0:01:41]} 21. h4 {[%emt 0:03:52] Against Qg5} Be2 {[%emt 0:15:00]} (21... c4 $15 22. bxc4 Be2) 22. Qg3 {[%emt 0:03:55]} (22. Qf5 $11 {was the only way to keep the balance.} Rf8 23. Qd5+ Kh8 24. dxc5) 22... Bxb5 {[%emt 0:13:10] 0x0.000861431152dp-1022s more active pieces. The white rooks are badly placed.} (22... cxd4 $17 23. Bxd4 Qd7) 23. dxc5 $15 {[%emt 0:01:45]} Rf8 {[%emt 0:03:34]} ({Black should play} 23... Re8 $17 {Threatens to win with ...Bc7.} 24. Qf4 Ne4) 24. Bd4 $2 {[%emt 0:03:36]} (24. Qe5 $11 Qf7 25. Rh3) 24... Bc7 $2 {[%emt 0:02:29]} (24... Qd7 $19 25. Be5 Ne4) 25. Qg5 $11 {[%emt 0:02:00]} Qxg5 {[%emt 0:00:30] Chess con chili.} 26. hxg5 {[%emt 0:00:01]} Ne4 {[%emt 0:09:20]} 27. c6 {[%emt 0:00:27] Black must now prevent a4.} a5 {[%emt 0:03:34]} (27... Bxc6 $2 28. Rc1 Rc8 29. Rxc6 $18) 28. Be3 {[%emt 0:00:58]} (28. a4 $16 Ba6 29. g6 hxg6 30. Re1) 28... Be5 {[%emt 0:01:11]} 29. Re1 {[%emt 0:03:58][%cal Oe3c5] Strongly threatening Bc5!} ({Don't play} 29. Rc1 Nc3 30. a4 Bxc6 $15) 29... Bxc6 {[%emt 0:01:35]} 30. Rh4 {[%emt 0:00:46]} Bb8 {[%emt 0:07:56]} 31. Bb6 {[%emt 0:00:32][%csl LRa5,LRe4]} Nxg5 {[%emt 0:00:26]} (31... Bf4 $1 $11 {keeps the balance.}) 32. Bxa5 {[%emt 0:00:23]} (32. Rc4 $16 Bb7 33. Rc5) 32... Ba7 {[%emt 0:00:46] A strong pair of Bishops.} 33. Re2 {[%emt 0:00:26]} h6 {[%emt 0:01:46]} (33... Ne4 $5 {[%cal Rf8f2]} 34. Be1 (34. Rhxe4 $2 Bxe4 35. Rxe4 Bxf2+ 36. Kf1 Bb6+ 37. Ke1 Bxa5+ $19) (34. Rexe4 $2 Bxf2+ 35. Kh1 Bxe4 $19) 34... Ng3 $11) 34. Be1 {[%emt 0:00:52]} Rd8 {[%emt 0:00:51]} (34... Rf6 $11) 35. a4 {[%emt 0:00:31]} Rd1 {[%emt 0:00:44][%cal Oc6f3]} 36. Rc4 {[%emt 0:00:20]} (36. Kf1 $1 $14 {is superior.}) 36... Bd5 $36 {[%emt 0:00:09][%mdl 2048] Black is more active.} 37. Rc8+ {[%emt 0:00:08]} Kh7 {[%emt 0:00:10]} 38. b4 {[%emt 0:00:10]} Ne6 {[%emt 0:01:21] aiming for ...Nf4.} 39. Kh2 $1 {[%emt 0:00:20]} Nf4 {[%emt 0:00:41]} 40. Re5 {[%emt 0:00:08]} (40. Re7 $11 {and White has nothing to worry.}) 40... Bd4 {[%emt 0:00:30] Weighted Error Value: White=0.40/Black=0.33} 0-1

[Event "16th HSG Open-A 2022"]
[Site "Hilversum"]
[Date "2022.06.18"]
[Round "3.2"]
[White "Lanchava, Tea"]
[Black "Gilmanov, Mansur"]
[Result "1-0"]
[ECO "A29"]
[WhiteElo "2232"]
[BlackElo "2390"]
[Annotator "TA"]
[PlyCount "104"]
[EventDate "2022.06.17"]
[EventCountry "NED"]
[SourceTitle "playchess.com"]
[Source "ChessBase"]
[SourceQuality "1"]
[TimeControl "6600+10"]

{[%evp 12,104,18,22,30,15,12,16,50,29,57,49,39,33,34,33,39,26,52,42,44,46,46,40,57,49,124,63,78,80,116,106,149,145,147,135,140,133,139,74,114,102,110,131,260,237,341,366,354,343,411,354,313,248,297,234,236,141,141,137,145,91,252,229,368,361,580,593,561,570,546,526,687,685,658,677,541,555,523,506,473,462,513,510,503,496,485,478,468,452,418,392,296,296,29965]} 1. c4 {[%emt 0:00:03]} e5 {[%emt 0:05:41]} 2. Nc3 {[%emt 0:00:15]} Bb4 {[%emt 0:00:29]} 3. Qc2 {[%emt 0:00:37]} Nf6 {[%emt 0:05:45]} 4. Nf3 {[%emt 0:00:23]} Bxc3 {[%emt 0:07:34]} 5. Qxc3 {[%emt 0:00:53]} d6 {[%emt 0:00:08]} 6. g3 {[%emt 0:01:18]} Nc6 {[%emt 0:03:16]} 7. Bg2 {[%emt 0:00:27]} Bg4 {[%emt 0:05:01] [#] A29: English Opening: Four Knights Variation with 4 g3.} 8. d3 $146 {[%emt 0:02:51]} ({Predecessor:} 8. O-O Bxf3 9. Bxf3 Nd4 10. Bxb7 Nxe2+ 11. Kh1 Nxc3 12. Bxa8 Ne2 13. Bc6+ Nd7 14. Bxd7+ Qxd7 {0-1 (24) Gaebel,M-Ber,K freechess.de 2018}) 8... a5 {[%emt 0:05:19]} 9. h3 {[%emt 0:03:47]} Be6 {[%emt 0:03:23] The position is equal.} 10. O-O {[%emt 0:00:41]} (10. d4 $5 {[%cal Rd4d5]}) 10... h6 {[%emt 0:02:30]} 11. d4 {[%emt 0:08:16]} exd4 {[%emt 0:04:45]} 12. Nxd4 {[%emt 0:00:10]} Nxd4 {[%emt 0:00:11]} 13. Qxd4 {[%emt 0:00:09]} O-O {[%emt 0:00:24]} 14. g4 {[%emt 0:01:19]} c5 {[%emt 0:03:23]} 15. Qc3 {[%emt 0:01:20]} d5 {[%emt 0:35:56]} 16. cxd5 {[%emt 0:04:31]} Nxd5 {[%emt 0:00:25][%cal Bf6d5,Bd5f4,Bf4e2][%mdl 32]} 17. Qxc5 {[%emt 0:00:50] Rd1 is the strong threat.} Rc8 {[%emt 0:00:40]} 18. Qb5 {[%emt 0:00:50]} b6 {[%emt 0:09:52]} ({Better is} 18... Nb4 $14) 19. a3 {[%emt 0:05:32]} (19. Rd1 $16 {Hoping for Be3.} Rc5 20. Qb3) 19... Rc5 {[%emt 0:02:26]} 20. Qd3 {[%emt 0:03:30]} h5 {[%emt 0:05:02]} 21. e4 {[%emt 0:04:28]} Nf4 {[%emt 0:00:32]} 22. Qxd8 {[%emt 0:00:07]} Ne2+ {[%emt 0:00:02]} 23. Kh2 {[%emt 0:00:19]} Rxd8 {[%emt 0:00:02]} 24. Be3 {[%emt 0:01:26]} Rb5 {[%emt 0:00:38] [#]} 25. g5 {[%emt 0:02:25]} (25. gxh5 $142 $1 {Black must now prevent Rfb1.} a4 26. Rfd1 Rxd1 27. Rxd1 Rxb2 28. Rd8+ Kh7 29. e5) 25... Rxb2 {[%emt 0:03:04]} 26. Rfb1 $36 {[%emt 0:00:39][%mdl 2048] Keeping Black busy.} Rc2 {[%emt 0:01:30]} 27. Rxb6 {[%emt 0:03:21]} Rd3 {[%emt 0:00:35] [#]} (27... Kh7 $16 28. Ra6 Rd3) 28. g6 $1 $18 {[%emt 0:01:38]} Rb3 {[%emt 0:02:08]} (28... Rd8 $142 29. Rab1 h4) 29. Rd1 {[%emt 0:02:11][%cal Rd1d8]} Rc8 {[%emt 0:01:45] Prevents Rd8+.} 30. Rbd6 {[%emt 0:01:14] White threatens Rd8+ and mate.} Kf8 {[%emt 0:00:47]} 31. Rd8+ {[%emt 0:59:50]} Rxd8 {[%emt 0:02:07]} 32. Rxd8+ Ke7 {[%emt 0:00:10] [#]} 33. gxf7 $1 {[%emt 0:00:20]} Kxf7 {[%emt 0:00:10]} 34. Ra8 {[%emt 0:00:00]} (34. Bf3 $18 Nc3 35. Ra8 (35. Bxh5+ g6 $16)) 34... Rxa3 $16 {[%emt 0:00:00]} 35. Bf3 {[%emt 0:00:00]} Nf4 {[%emt 0:00:00]} 36. Bd1 {[%emt 0:00:00]} (36. Kg3 $142 Nxh3 37. Bxh5+ Kf6 38. Ra6) 36... g5 {[%emt 0:00:00] This move loses the game for Black.} (36... Ra1 $16) 37. h4 $18 {[%emt 0:00:00]} Rd3 {[%emt 0:00:40]} (37... Ra1 $142) 38. Ba4 {[%emt 0:00:50]} Ne2 $2 {[%emt 0:00:10]} (38... Nh3 39. hxg5 Rxe3) 39. Bb5 {[%emt 0:00:10]} Rxe3 {[%emt 0:00:10]} 40. fxe3 {[%emt 0:00:10][%mdl 4096] Endgame KRB-KBN} Nc3 {[%emt 0:00:10]} 41. Be8+ {[%emt 0:00:10]} Kf6 {[%emt 0:00:10]} 42. hxg5+ {[%emt 0:00:10]} Kxg5 {[%emt 0:00:10]} 43. Rxa5+ {[%emt 0:00:10]} Kf6 {[%emt 0:00:10]} 44. Bc6 {[%emt 0:00:10]} h4 {[%emt 0:00:10]} 45. Rc5 {[%emt 0:00:10]} Nd1 {[%emt 0:00:10]} 46. Rh5 {[%emt 0:00:10]} h3 {[%emt 0:00:10]} 47. e5+ {[%emt 0:00:10]} Kg6 {[%emt 0:00:10]} 48. Be8+ {[%emt 0:00:10]} Kg7 {[%emt 0:00:10]} 49. Rg5+ {[%emt 0:00:10]} Kf8 {[%emt 0:00:10]} 50. Bh5 {[%emt 0:00:10]} Nxe3 {[%emt 0:00:10]} 51. Be2 {[%emt 0:00:10] Inhibits Nf1+.} Kf7 {[%emt 0:00:10]} 52. Rg3 {[%emt 0:00:10]} Ke7 $2 {[%emt 0:00:10] Weighted Error Value: White=0.12 (very precise) /Black=0.39} (52... Nc2 $18 53. Bh5+ Ke7 54. Rg7+ Kf8) 1-0

[Event "16th HSG Open-A 2022"]
[Site "Hilversum"]
[Date "2022.06.18"]
[Round "3.3"]
[White "Tabak, Stefan"]
[Black "Harff, Marcel"]
[Result "0-1"]
[ECO "C02"]
[WhiteElo "2160"]
[BlackElo "2336"]
[Annotator "TA"]
[PlyCount "110"]
[EventDate "2022.06.17"]
[EventCountry "NED"]
[SourceTitle "playchess.com"]
[Source "ChessBase"]
[SourceQuality "1"]
[TimeControl "6600+10"]

{[%evp 11,110,0,10,0,0,-26,-25,-31,-16,-9,0,-50,-33,-55,-54,-60,-59,-62,-43,-145,-47,-54,-56,-192,-68,-99,-62,-69,-62,-143,-152,-175,-110,-110,-110,-96,-93,-117,-106,-115,-100,-93,-108,-156,-156,-157,-156,-158,-158,-151,-141,-148,-142,-164,-172,-253,-256,-254,-191,-242,-150,-172,-151,-170,-181,-134,-95,-196,-106,-139,-132,-132,-132,-142,-23,-289,-285,-254,-249,-392,-402,-602,-598,-617,-609,-601,-588,-537,-413,-952,-932,-29975,-29975,-29976,-29976,-29979,-29980,-29983,-29984,-29983,-29984]} 1. e4 {[%emt 0:00:05]} e6 {[%emt 0:00:11]} 2. d4 {[%emt 0:00:17]} d5 {[%emt 0:00:06]} 3. e5 {[%emt 0:00:09]} c5 {[%emt 0:00:07]} 4. c3 {[%emt 0:00:04]} Nc6 {[%emt 0:00:14]} 5. Nf3 {[%emt 0:00:12]} Bd7 {[%emt 0:00:13]} 6. Bd3 {[%emt 0:00:21]} Rc8 {[%emt 0:00:31]} 7. O-O {[%emt 0:00:33] C02: French: Advance Variation.} cxd4 {[%emt 0:00:07]} 8. Re1 {[%emt 0:01:12]} dxc3 {[%emt 0:01:58]} 9. Nxc3 {[%emt 0:09:27] [#] Black has an edge.} h6 $146 {[%emt 0:05:17]} ({Predecessor:} 9... a6 10. Ng5 g6 11. Qf3 Qe7 12. Qf4 Nb4 13. Bb1 Rc4 14. Qf3 Bh6 15. b3 Rc8 {0-1 (29) Philipsen,W (1991)-Nilssen,E (2071) Copenhagen 2020}) 10. a3 {[%emt 0:02:52]} a6 {[%emt 0:00:26]} 11. Be3 {[%emt 0:08:02]} (11. Bd2 $11) 11... Na5 $1 $15 {[%emt 0:01:21]} 12. Bf4 {[%emt 0:15:56][%cal Oc3d5]} Ne7 {[%emt 0:04:00]} 13. h4 {[%emt 0:01:30]} Nc4 {[%emt 0:00:06]} 14. Qe2 {[%emt 0:00:51]} Qb6 {[%emt 0:03:02]} 15. b4 {[%emt 0:06:40] [#]} (15. Rac1 $15) 15... Qd8 {[%emt 0:17:16]} (15... Nxa3 $1 $17 {[%mdl 512]} 16. Bd2 (16. Rxa3 $2 Qxb4 17. Bc1 Rxc3 $17) 16... Nc4) 16. h5 {[%emt 0:01:37]} b5 {[%emt 0:00:51]} 17. g4 {[%emt 0:27:52]} ({White should play} 17. a4 $15) 17... Nb6 {[%emt 0:10:49]} ({Black should try} 17... Nc6 $19 18. Qd1 Qb6 19. Bxc4 bxc4) 18. Rac1 {[%emt 0:01:19]} g5 {[%emt 0:00:06]} 19. hxg6 {[%emt 0:05:45]} Nxg6 {[%emt 0:01:16]} 20. Bg3 {[%emt 0:00:05] [#]} ({Better is} 20. Bxg6 $15 fxg6 21. Qd3) 20... Rg8 $1 $17 {[%emt 0:00:32]} 21. Kg2 {[%emt 0:02:54]} Be7 {[%emt 0:01:56]} (21... Nc4 $19 22. Ra1 Ne7) 22. Rh1 {[%emt 0:03:09]} Bg5 {[%emt 0:00:32]} 23. Nxg5 {[%emt 0:01:33]} Qxg5 {[%emt 0:00:26]} (23... hxg5 $6 24. Bxg6 fxg6 25. Rh7 $11) 24. Bxg6 {[%emt 0:03:38]} Rxg6 {[%emt 0:00:38]} 25. f4 {[%emt 0:00:50]} Qxg4 {[%emt 0:01:15]} 26. Qxg4 {[%emt 0:00:05]} Rxg4 {[%emt 0:00:05]} 27. Kf3 {[%emt 0:02:30]} (27. Rxh6 $142 Rg8 28. Ne2) 27... Rg6 {[%emt 0:00:25] ...d4 is the strong threat.} 28. Ne2 {[%emt 0:00:04]} Rxc1 {[%emt 0:01:38]} 29. Rxc1 {[%emt 0:00:07]} Nc4 {[%emt 0:00:04]} 30. Bh4 {[%emt 0:01:44]} Bc6 {[%emt 0:00:34] Threatens to win with ...d4+.} (30... Nxa3 31. Rc7 Nb1 32. Rb7 Nd2+ 33. Ke3 Nc4+ 34. Kf3 Nd2+ 35. Ke3 Nc4+ 36. Kf3 Nd2+ $11) 31. Nd4 {[%emt 0:00:13]} Bb7 {[%emt 0:00:06]} 32. Bf6 {[%emt 0:06:23]} Kd7 {[%emt 0:00:49]} (32... Nxa3 $2 33. Rc7 $18) 33. f5 {[%emt 0:00:31]} (33. Rd1 $142) 33... exf5 $19 {[%emt 0:00:19]} 34. Rd1 {[%emt 0:01:15]} f4 {[%emt 0:01:28]} 35. Kxf4 {[%emt 0:00:52]} (35. Rh1 {keeps fighting.}) 35... Rg2 {[%emt 0:00:31]} ({Wrong is} 35... Nxa3 $2 36. Rh1) 36. Nb3 {[%emt 0:00:30]} Kc7 {[%emt 0:02:33]} 37. Nc5 {[%emt 0:00:36]} Rf2+ {[%emt 0:00:13]} 38. Kg3 {[%emt 0:00:14]} Rd2 {[%emt 0:00:25]} 39. Rh1 {[%emt 0:00:21]} (39. e6 $17 fxe6 40. Rxd2 Nxd2 41. Be5+ Kc6 42. Nxe6) 39... Ne3 {[%emt 0:00:26]} ({But not} 39... Nxa3 40. Rxh6 d4 41. Rh7 $16) (39... d4 $19 40. e6 Rg2+ 41. Kh3 fxe6) 40. Kf4 {[%emt 0:00:36]} d4 {[%emt 0:00:16]} 41. Nxb7 {[%emt 0:00:34]} Kxb7 {[%emt 0:01:33]} 42. Rxh6 $17 {[%emt 0:00:07][%mdl 4096] Endgame KRB-KRN} Nd5+ {[%emt 0:00:17]} (42... Nc4 $17 {And now ...d3 would win.} 43. Ke4 d3) 43. Ke4 {[%emt 0:00:22][%mdl 8192]} (43. Kf3 $11 {and White stays safe.}) 43... Nc3+ $19 {[%emt 0:00:32]} 44. Kf3 {[%emt 0:00:01]} Rd3+ {[%emt 0:00:57]} 45. Kf4 {[%emt 0:01:50]} (45. Kg2 $142) 45... Rd1 {[%emt 0:03:55]} 46. Rh7 {[%emt 0:00:10]} (46. Kf3 $142 d3 47. Bg5 (47. e6 $2 d2 $19)) 46... Rf1+ {[%emt 0:00:13]} 47. Kg4 {[%emt 0:00:17][%cal Oe5e6]} d3 {[%emt 0:00:02][%cal Bd4d3,Bd3d2][%mdl 32] ( -> ...d2)} 48. Bg5 {[%emt 0:01:37]} Kc6 {[%emt 0:04:15] Strongly threatening ...Rg1+.} 49. Rh6+ {[%emt 0:00:13]} Kc7 {[%emt 0:02:22] aiming for ...Rg1+.} 50. Rxa6 {[%emt 0:00:12]} (50. Bd2 $142 Nb1 51. Rh2) 50... Rg1+ {[%emt 0:00:13]} 51. Kf5 {[%emt 0:00:05] [#]} Rxg5+ $1 {[%emt 0:00:08][%mdl 512] Black mates.} 52. Kxg5 {[%emt 0:00:00]} (52. Kf4 Nd5+) 52... d2 {[%emt 0:00:54]} 53. Ra7+ {[%emt 0:00:03]} Kd8 {[%emt 0:00:19]} 54. Ra8+ {[%emt 0:00:26]} Ke7 {[%emt 0:00:06]} 55. Ra7+ {[%emt 0:00:09]} Ke6 {[%emt 0:00:05] Weighted Error Value: White=0.62/Black=0.22 (precise)} 0-1

[Event "16th HSG Open-A 2022"]
[Site "Hilversum"]
[Date "2022.06.18"]
[Round "3.4"]
[White "Elgersma, Onno"]
[Black "De Winter, Arthur"]
[Result "1-0"]
[ECO "E61"]
[WhiteElo "2303"]
[BlackElo "2090"]
[Annotator "TA"]
[PlyCount "109"]
[EventDate "2022.06.17"]
[EventCountry "NED"]
[SourceTitle "playchess.com"]
[Source "ChessBase"]
[SourceQuality "1"]
[TimeControl "6600+10"]

{[%evp 18,109,26,45,48,45,43,36,53,36,48,37,45,39,21,0,66,64,65,56,191,170,180,171,218,204,195,202,186,85,86,42,133,101,241,235,400,387,333,305,309,300,305,287,273,279,239,245,1902,1843,2029,784,1756,300,290,262,457,456,458,394,517,462,496,512,457,416,967,956,29969,29965,29958,29966,29964,29966,29976,29977,29977,29978,29977,29977,29976,29978,29978,29979,29979,29980,29980,29980,29980,29980,29980,29980,29980,29981]} 1. d4 {[%emt 0:00:04]} Nf6 {[%emt 0:00:11]} 2. Nf3 {[%emt 0:00:05]} g6 {[%emt 0:00:31]} 3. c4 {[%emt 0:00:05]} Bg7 {[%emt 0:00:05]} 4. e3 {[%emt 0:00:04]} O-O {[%emt 0:00:46]} 5. Be2 {[%emt 0:00:04]} d6 {[%emt 0:00:27]} 6. Nc3 {[%emt 0:00:06]} Nbd7 {[%emt 0:00:45]} 7. O-O {[%emt 0:00:06]} e5 {[%emt 0:00:02]} 8. Qc2 {[%emt 0:00:10]} Re8 {[%emt 0:01:02]} 9. Rd1 {[%emt 0:00:06]} e4 {[%emt 0:00:49]} 10. Nd2 $1 {[%emt 0:00:05]} Qe7 {[%emt 0:00:05] E61: King's Indian: Early deviations for White, including Smyslov System.} 11. b4 {[%emt 0:00:09]} Nf8 {[%emt 0:00:59]} 12. a4 {[%emt 0:00:11][%cal Ba2a4,Ba4a5,Ba5a6][%mdl 32]} h5 {[%emt 0:05:35] White is slightly better.} 13. a5 {[%emt 0:00:21][%cal Oa5a6]} Bf5 {[%emt 0:01:04]} 14. a6 {[%emt 0:00:23]} b6 {[%emt 0:04:33]} 15. b5 {[%emt 0:00:11]} Ne6 {[%emt 0:08:27] [#]} 16. Nf1 $146 {[%emt 0:02:15]} ({Predecessor:} 16. Ra2 Rac8 17. h3 Ng5 18. Bf1 Qe6 19. Kh2 d5 20. Ba3 Bg4 21. hxg4 Nxg4+ 22. Kh1 {0-1 (39) Vaassen,J (2189)-Husemann,A (2203) LSS email 2017}) 16... Ng4 {[%emt 0:11:03]} (16... Ng5 $1 $11) 17. h3 {[%emt 0:27:06]} Nxf2 {[%emt 0:43:07]} 18. Kxf2 {[%emt 0:00:26]} Bxd4 {[%emt 0:00:20]} 19. Kg1 {[%emt 0:06:14]} (19. Rxd4 $6 Nxd4 20. Qa2 (20. exd4 $2 e3+ 21. Nxe3 Bxc2 $19) 20... Nxe2 21. Nxe2 h4 $14) (19. exd4 $6 e3+ 20. Nxe3 Bxc2 21. Nxc2 Nc5 $16) 19... Be5 {[%emt 0:00:27]} 20. Bb2 {[%emt 0:08:33] Hoping for Nd5.} Ng5 {[%emt 0:06:43]} (20... Qg5 $142) 21. Nd5 {[%emt 0:19:27]} Nxh3+ {[%emt 0:01:11]} 22. gxh3 {[%emt 0:00:06]} Qg5+ {[%emt 0:00:07] [#]} 23. Kh1 {[%emt 0:00:17]} (23. Bg4 $1 $18 {is the precise move to win.}) 23... Bxh3 $16 {[%emt 0:00:53][%csl Gh3][%cal Rg5g2]} 24. Bxh5 $1 {[%emt 0:00:32]} Bxf1 {[%emt 0:09:58] White leaves nothing to chance now.} (24... Qxh5 $14 25. Nh2 (25. Bxe5 Qf3+ 26. Kh2 Rxe5 $11) 25... Rac8) 25. Bxe5 {[%emt 0:01:48] Dancing on a razor blade.} Rxe5 {[%emt 0:03:21]} (25... Qxh5+ $16 {keeps fighting.} 26. Kg1 (26. Qh2 $2 Qf3+ 27. Kg1 Rxe5 $19) 26... Qg5+ 27. Kxf1 Rxe5) 26. Rxf1 $18 {[%emt 0:00:40]} Kg7 $2 {[%emt 0:01:35] [#]} (26... Qxh5+ {was worth a try.} 27. Qh2 Qxh2+ 28. Kxh2 Kg7) 27. Nf4 $1 {[%emt 0:02:15][%cal Of1f2]} Rh8 {[%emt 0:00:16] [#] Threatens to win with ...Qxh5+.} 28. Rf2 $1 {[%emt 0:03:12][%cal Bf1f2,Bf2h2,Bh2h3][%mdl 32] aiming for Rh2!} Rxh5+ {[%emt 0:05:24]} 29. Nxh5+ {[%emt 0:01:19]} Qxh5+ {[%emt 0:00:03]} 30. Rh2 {[%emt 0:04:08]} Qf3+ {[%emt 0:00:04]} 31. Qg2 {[%emt 0:00:04]} Qxe3 {[%emt 0:00:03]} 32. Rf1 {[%emt 0:02:04] Black must now prevent Qg4.} f5 {[%emt 0:01:25] Against Qg4} (32... Qd3 33. Rc1 (33. Qf2 Rf5 $16) 33... Rf5) 33. Rh3 {[%emt 0:01:15]} Qd4 {[%emt 0:00:18]} 34. Qh2 {[%emt 0:00:43]} (34. Qg5 $142 Qxc4 35. Rc1 Qxc1+ 36. Qxc1) 34... e3 {[%emt 0:00:42]} 35. Rg1 $2 {[%emt 0:05:18]} (35. Rh7+ Kf6 36. Qh6 Qe4+ 37. Kh2 Qc2+ 38. Kh3) 35... Qe4+ {[%emt 0:01:01]} 36. Qg2 {[%emt 0:00:53]} e2 $2 {[%emt 0:00:04]} (36... Kf6 37. Rh6 (37. Rf3 e2 $11) 37... Rc5 38. Rxg6+ (38. Qxe4 fxe4 39. Rhxg6+ Ke5 $16) 38... Ke5) 37. Qxe4 {[%emt 0:00:32]} Rxe4 {[%emt 0:00:03]} 38. Re1 {[%emt 0:00:05]} f4 {[%emt 0:00:22]} 39. Rf3 {[%emt 0:03:06]} Kf6 {[%emt 0:01:10]} 40. Rf2 {[%emt 0:00:26]} Rxc4 {[%emt 0:00:09]} 41. Rexe2 {[%emt 0:01:30] And now Rc2 would win.} d5 {[%emt 0:00:26]} (41... g5 $142 42. Re8 c6) 42. Rc2 {[%emt 0:00:26] White wants to mate with Rxc4.} Ke6 {[%emt 0:00:54]} 43. Rxc4 {[%emt 0:01:36] White mates.} dxc4 {[%emt 0:00:02]} 44. Rxf4 {[%emt 0:00:05] KR-KP} Kd5 {[%emt 0:00:05]} 45. Rf7 {[%emt 0:00:11]} Kc5 {[%emt 0:00:04]} 46. Rxc7+ {[%emt 0:00:24]} Kxb5 {[%emt 0:00:02]} 47. Rxa7 {[%emt 0:01:32] KR-K3P} c3 {[%emt 0:00:01]} 48. Ra8 {[%emt 0:02:06]} c2 {[%emt 0:00:09]} 49. Rc8 {[%emt 0:00:03]} Kxa6 {[%emt 0:00:02]} 50. Rxc2 {[%emt 0:00:05] KR-KPP} b5 {[%emt 0:00:19]} 51. Kg1 {[%emt 0:00:34]} b4 {[%emt 0:00:33]} 52. Kf1 {[%emt 0:00:24]} Kb5 {[%emt 0:00:07]} 53. Ke1 {[%emt 0:00:14]} Ka4 {[%emt 0:00:31]} 54. Kd1 {[%emt 0:00:09]} b3 {[%emt 0:00:08]} 55. Rg2 {[%emt 0:00:09] Weighted Error Value: White=0.24 (precise) /Black=0.49} 1-0